Workbook

Sheet MAIN CONTR BOQ
A1: BILL OF QUANTITIES SECTION 1: PRELIMINARY & GENERAL
A75: Contract JW14090R Replacement of 600 mm Diameter Bulk Steel Water Pipeline from Linbro Reservoir to Alexandra Township
A76: ITEM NO | B76: PAYMENT CLAUSE | C76: DESCRIPTION | D76: UNIT | E76: QUANTITY | F76: RATE | G76: AMOUNT
C77: SECTION 1
A79: 1 | B79: SANS 1200A | C79: GENERAL
A81: 1.1 | B81: 8.3 | C81: SCHEDULED FIXED-CHARGE AND VALUE-RELATED CHARGES
A83: 1.1.1 | B83: 8.3.1 | C83: Contractual Requirements | D83: Sum | E83: 1
G84: =IF(E84<>"",E84*F84,"") -> 
A85: 1.1.2 | B85: 8.3.2 | C85: Establishment of facilities on the site
A87: 1.1.2.1 | B87: PSA 8.3.2.1 | C87: Facilities for Employer`s Agent
A89: 1.1.2.1.1 | C89: a.1) Furnished office (3 No.) | D89: Sum | E89: 1 | Q89: =IF(K89="No comment",0,1) -> 1 | R89: 1 | S89: 1 | T89: =SUM(N89:S89) -> 3
Q90: =IF(K90="No comment",0,1) -> 1 | R90: =IF(L90="No comment",0,1) -> 1 | S90: =IF(M90="No comment",0,1) -> 1 | T90: =SUM(N90:S90) -> 3
A91: 1.1.2.1.2 | C91: a.2) Furnished office for Johannesburg Water Engineering Team | D91: Sum | E91: 1 | Q91: 1 | R91: 1 | S91: 1 | T91: 3
Q92: 1 | R92: 1 | S92: 1 | T92: 3
A93: 1.1.2.1.3 | C93: b) Nameboards (2 No.) | D93: Sum | E93: 1 | Q93: 1 | R93: 1 | S93: 1 | T93: 3
Q94: 1 | R94: 1 | S94: 1 | T94: 3
A95: 1.1.2.1.4 | C95: c) Communication | D95: Prov Sum | E95: 1 | F95: 100000 | G95: 100000 | Q95: 1 | R95: 1 | S95: 1 | T95: 3
Q96: 1 | R96: 1 | S96: 1 | T96: 3
A97: 1.1.2.1.5 | C97: d) Overheads, charges and profit on item c) above | D97: % | F97: =F95 -> 100000 | Q97: 1 | R97: 1 | S97: 1 | T97: 3
Q98: 1 | R98: 1 | S98: 1 | T98: 3
A99: 1.1.2.1.6 | C99: e) Boardroom | D99: Sum | E99: 1 | Q99: 1 | R99: 1 | S99: 1 | T99: 3
Q100: 1 | R100: 1 | S100: 1 | T100: 3
A101: 1.1.2.1.7 | C101: f) Computer facilities complete with printer and wifi router with internet connection | D101: Prov Sum | E101: 1 | F101: 200000 | G101: =F101*E101 -> 200000 | Q101: 1 | R101: 1 | S101: 1 | T101: 3
Q102: 1 | R102: 1 | S102: 1 | T102: 3
A103: 1.1.2.1.8 | C103: g) Survey equipment, assistants and material” | D103: Prov Sum | E103: 1 | F103: 200000 | G103: =F103*E103 -> 200000 | Q103: 1 | R103: 1 | S103: 1 | T103: 3
Q104: 1 | R104: 1 | S104: 1 | T104: 3
A105: 1.1.2.1.9 | C105: h) Parking (8 No.) | D105: Sum | E105: 1 | Q105: 1 | R105: 1 | S105: 1 | T105: 3
Q106: 1 | R106: 1 | S106: 1 | T106: 3
A107: 1.1.2.1.10 | C107: i) CLO's Office | D107: Sum | E107: 1 | Q107: 1 | R107: 1 | S107: 1 | T107: 3
Q108: 1 | R108: 1 | S108: 1 | T108: 3
A109: 1.1.2.2 | B109: 8.3.2.2 | C109: Facilities for Contractor | Q109: 1 | R109: 1 | S109: 1 | T109: 3
Q110: 1 | R110: 1 | S110: 1 | T110: 3
A111: 1.1.2.2.1 | C111: (a) Offices and storage sheds | D111: Sum | E111: 1 | Q111: 1 | R111: 1 | S111: 1 | T111: 3
Q112: 1 | R112: 1 | S112: 1 | T112: 3
A113: 1.1.2.2.2 | C113: (b) Workshops | D113: Sum | E113: 1 | Q113: 1 | R113: 1 | S113: 1 | T113: 3
Q114: 1 | R114: 1 | S114: 1 | T114: 3
A115: 1.1.2.2.3 | C115: (e) Ablution and latrine facilities | D115: Sum | E115: 1 | Q115: 1 | R115: 1 | S115: 1 | T115: 3
Q116: 1 | R116: 1 | S116: 1 | T116: 3
A117: 1.1.2.2.4 | C117: (f) Tools and equipment | D117: Sum | E117: 1 | Q117: 1 | R117: 1 | S117: 1 | T117: 3
Q118: 1 | R118: 1 | S118: 1 | T118: 3
A119: 1.1.2.2.5 | C119: (g) Water supplies, electric power and communications | D119: Sum | E119: 1 | Q119: 1 | R119: 1 | S119: 1 | T119: 3
Q120: 1 | R120: 1 | S120: 1 | T120: 3
A121: 1.1.2.2.6 | C121: (h) Dealing with water | D121: Sum | E121: 1 | Q121: 1 | R121: 1 | S121: 1 | T121: 3
Q122: 1 | R122: 1 | S122: 1 | T122: 3
A123: 1.1.2.2.7 | C123: (i) Access | D123: Sum | E123: 1 | Q123: 1 | R123: 1 | S123: 1 | T123: 3
Q124: 1 | R124: 1 | S124: 1 | T124: 3
A125: 1.1.2.2.8 | C125: (j) Plant | D125: Sum | E125: 1 | Q125: 1 | R125: 1 | S125: 1 | T125: 3
Q126: 1 | R126: 1 | S126: 1 | T126: 3
A127: 1.1.3 | B127: 8.3.3 | C127: Other fixed-charge obligations | D127: Sum | E127: 1 | Q127: 1 | R127: 1 | S127: 1 | T127: 3
Q128: 1 | R128: 1 | S128: 1 | T128: 3
A129: 1.1.4 | B129: 8.3.4 | C129: Removal of site establishment | D129: Sum | E129: 1 | Q129: 1 | R129: 1 | S129: 1 | T129: 3
Q130: 1 | R130: 1 | S130: 1 | T130: 3
A131: 1.1.5 | B131: PSA 8.3.5 | C131: Additional Contractual Obligations | Q131: 1 | R131: 1 | S131: 1 | T131: 3
Q132: 1 | R132: 1 | S132: 1 | T132: 3
A133: 1.1.5.1 | B133: PSA 8.3.5.1 | C133: Issuing of notices to consumers. | D133: Sum | E133: 1 | Q133: 1 | R133: 1 | S133: 1 | T133: 3
Q134: 1 | R134: 1 | S134: 1 | T134: 3
A135: 1.1.5.2 | B135: PSA 8.3.5.2 | C135: OHS Act Obligations | D135: Sum | E135: 1 | Q135: 1 | R135: 1 | S135: 1 | T135: 3
Q136: 1 | R136: 1 | S136: 1 | T136: 3
A137: 1.1.5.3 | B137: PSA 8.3.5.3 | C137: EMP Obligations | D137: Sum | E137: 1 | Q137: 1 | R137: 1 | S137: 1 | T137: 3
Q138: 1 | R138: 1 | S138: 1 | T138: 3
A139: 1.2 | B139: 8.4 | C139: SCHEDULED TIME-RELATED ITEMS | Q139: 1 | R139: 1 | S139: 1 | T139: 3
Q140: 1 | R140: 1 | S140: 1 | T140: 3
A141: 1.2.1 | B141: 8.4.1 | C141: Contractual Requirements | D141: Sum | E141: 1 | Q141: 1 | R141: 1 | S141: 1 | T141: 3
Q142: 1 | R142: 1 | S142: 1 | T142: 3
A143: 1.2.2 | B143: 8.4.2 | C143: Operation and maintenance of facilities on site, for duration of construction, except where otherwise stated | Q143: 1 | R143: 1 | S143: 1 | T143: 3
Q144: 1 | R144: 1 | S144: 1 | T144: 3
A145: 1.2.2.1 | B145: PSA 8.4.2.1 | C145: Facilities for Employer`s Agent | Q145: 1 | R145: 1 | S145: 1 | T145: 3
Q146: 1 | R146: 1 | S146: 1 | T146: 3
A147: 1.2.2.1.1 | C147: a.1) Furnished office (3 No.) | D147: Month | E147: 12 | Q147: 1 | R147: 1 | S147: 1 | T147: 3
Q148: 1 | R148: 1 | S148: 1 | T148: 3
A149: 1.2.2.1.2 | C149: a.2) Furnished office for Johannesburg Water Engineering Team | D149: Month | E149: 12 | Q149: 1 | R149: 1 | S149: 1 | T149: 3
Q150: 1 | R150: 1 | S150: 1 | T150: 3
A151: 1.2.2.1.3 | C151: b) Nameboards (2 No.) | D151: Month | E151: 12 | Q151: 1 | R151: 1 | S151: 1 | T151: 3
G152: =IF(E152<>"",E152*F152,"") ->  | Q152: 1 | R152: 1 | S152: 1 | T152: 3
A153: 1.2.2.1.4 | C153: (c) Communication | D153: Prov. Sum | E153: 1 | F153: 200000 | G153: 200000 | Q153: 1 | R153: 1 | S153: 1 | T153: 3
Q154: =IF(K154="No comment",0,1) -> 1 | R154: =IF(L154="No comment",0,1) -> 1 | S154: =IF(M154="No comment",0,1) -> 1 | T154: =SUM(N154:S154) -> 3
A155: 1.2.2.1.5 | C155: d) Overhead, charges and profit on item (c) above | D155: % | F155: =F153 -> 200000 | Q155: 1 | R155: 1 | S155: 1 | T155: 3
Q156: 1 | R156: 1 | S156: 1 | T156: 3
A157: TOTAL CARRIED FORWARD TO NEXT PAGE | Q157: 1 | R157: 1 | S157: 1 | T157: 3
A158: ITEM NO | B158: PAYMENT CLAUSE | C158: DESCRIPTION | D158: UNIT | E158: QUANTITY | F158: RATE | G158: AMOUNT | Q158: 1 | R158: 1 | S158: 1 | T158: 3
C159: TOTAL CARRIED FROM PREVIOUS PAGE | Q159: 1 | R159: 1 | S159: 1 | T159: 3
A161: 1.2.2.1.6 | C161: e) Boardroom | D161: Month | E161: 12 | Q161: 1 | R161: 1 | S161: 1 | T161: 3
Q162: 1 | R162: 1 | S162: 1 | T162: 3
A163: 1.2.2.1.7 | C163: f) Computer facilities complete with printer and wifi router with internet connection | D163: Month | E163: 12 | Q163: 1 | R163: 1 | S163: 1 | T163: 3
Q164: 1 | R164: 1 | S164: 1 | T164: 3
A165: 1.2.2.1.8 | C165: g) Survey equipment, assistants and material” | D165: Prov Sum | E165: 1 | F165: 200000 | G165: 200000 | Q165: 1 | R165: 1 | S165: 1 | T165: 3
Q166: 1 | R166: 1 | S166: 1 | T166: 3
A167: 1.2.2.1.9 | C167: h) Parking (4 No.) | D167: Month | E167: 12 | Q167: 1 | R167: 1 | S167: 1 | T167: 3
Q168: 1 | R168: 1 | S168: 1 | T168: 3
A169: 1.2.2.1.10 | C169: i) CLO's Office | D169: Month | E169: 12 | Q169: 1 | R169: 1 | S169: 1 | T169: 3
Q170: 1 | R170: 1 | S170: 1 | T170: 3
A171: 1.2.2.2 | B171: PSA 8.4.2.2 | C171: Facilities for Contractor | Q171: 1 | R171: 1 | S171: 1 | T171: 3
Q172: 1 | R172: 1 | S172: 1 | T172: 3
A173: 1.2.2.2.1 | C173: (a) Offices and storage sheds | D173: Month | E173: 12 | Q173: 1 | R173: 1 | S173: 1 | T173: 3
Q174: 1 | R174: 1 | S174: 1 | T174: 3
A175: 1.2.2.2.2 | C175: (b) Workshops | D175: Month | E175: 12 | Q175: 1 | R175: 1 | S175: 1 | T175: 3
Q176: 1 | R176: 1 | S176: 1 | T176: 3
A177: 1.2.2.2.5 | C177: (e) Ablution and latrine facilities | D177: Month | E177: 12 | Q177: 1 | R177: 1 | S177: 1 | T177: 3
Q178: 1 | R178: 1 | S178: 1 | T178: 3
A179: 1.2.2.2.6 | C179: (f) Tools and equipment | D179: Month | E179: 12 | Q179: 1 | R179: 1 | S179: 1 | T179: 3
Q180: 1 | R180: 1 | S180: 1 | T180: 3
A181: 1.2.2.2.7 | C181: (g) Water supplies, electric power and communications | D181: Month | E181: 12 | Q181: 1 | R181: 1 | S181: 1 | T181: 3
Q182: 1 | R182: 1 | S182: 1 | T182: 3
A183: 1.2.2.2.8 | C183: (h) Dealing with water | D183: Month | E183: 12 | Q183: 1 | R183: 1 | S183: 1 | T183: 3
Q184: 1 | R184: 1 | S184: 1 | T184: 3
A185: 1.2.2.2.9 | C185: (i) Access | D185: Month | E185: 12 | Q185: 1 | R185: 1 | S185: 1 | T185: 3
Q186: 1 | R186: 1 | S186: 1 | T186: 3
A187: 1.2.2.2.10 | C187: (j) Plant | D187: Month | E187: 12 | Q187: 1 | R187: 1 | S187: 1 | T187: 3
Q188: 1 | R188: 1 | S188: 1 | T188: 3
A189: 1.2.3 | B189: 8.4.3 | C189: Supervision for duration of construction | D189: Month | E189: 12 | Q189: 1 | R189: 1 | S189: 1 | T189: 3
Q190: 1 | R190: 1 | S190: 1 | T190: 3
A191: 1.2.4 | B191: 8.4.4 | C191: Company and head office overhead costs for the duration of the contract | D191: Month | E191: 12 | Q191: 1 | R191: 1 | S191: 1 | T191: 3
G192: =IF(E192<>"",E192*F192,"") ->  | Q192: 1 | R192: 1 | S192: 1 | T192: 3
A193: 1.2.5 | B193: PSA 8.4.5 | C193: Other Time-related obligations | D193: Month | E193: 12 | Q193: 1 | R193: 1 | S193: 1 | T193: 3
Q194: 1 | R194: 1 | S194: 1 | T194: 3
A195: 1.2.6 | B195: PSA8.3.5.4 | C195: Provide protective safety clothing | D195: Sum | E195: 1 | Q195: 1 | R195: 1 | S195: 1 | T195: 3
Q196: 1 | R196: 1 | S196: 1 | T196: 3
A197: 1.2.7 | B197: PSA 8.3.5 | C197: Additional Contractual Obligations | Q197: 1 | R197: 1 | S197: 1 | T197: 3
Q198: 1 | R198: 1 | S198: 1 | T198: 3
A199: 1.2.7.1 | B199: PSA 8.3.5.2 | C199: OHS Act Obligation | D199: Month | E199: 12 | Q199: 1 | R199: 1 | S199: 1 | T199: 3
Q200: 1 | R200: 1 | S200: 1 | T200: 3
A201: 1.2.7.2 | B201: PSA 8.3.5.3 | C201: EMP Obligations | D201: Month | E201: 12 | Q201: 1 | R201: 1 | S201: 1 | T201: 3
Q202: 1 | R202: 1 | S202: 1 | T202: 3
A203: 1.2.7.3 | B203: PSA 8.4.7 | C203: On-site security | D203: Month | E203: 12 | Q203: 1 | R203: 1 | S203: 1 | T203: 3
Q204: 1 | R204: 1 | S204: 1 | T204: 3
A205: 1.2.7.4 | B205: PSA 8.4.6.4 | C205: Risk Assessments every month | D205: Month | E205: 12 | Q205: 1 | R205: 1 | S205: 1 | T205: 3
Q206: 1 | R206: 1 | S206: 1 | T206: 3
A207: 1.2.8 | B207: PSA 8.5 | C207: SUMS STATED PROVISIONALLY BY EMPLOYER’S AGENT | Q207: 1 | R207: 1 | S207: 1 | T207: 3
Q208: 1 | R208: 1 | S208: 1 | T208: 3
A209: 1.2.8.1 | C209: a) Reinstatement of asphalt by JRA | D209: Prov. Sum | E209: 1 | F209: 1000000 | G209: =F209 -> 1000000 | Q209: 1 | R209: 1 | S209: 1 | T209: 3
Q210: 1 | R210: 1 | S210: 1 | T210: 3
A211: 1.2.8.2 | C211: b) Temporary protection of services | D211: Prov. Sum | E211: 1 | F211: 500000 | G211: =F211 -> 500000 | Q211: 1 | R211: 1 | S211: 1 | T211: 3
Q212: 1 | R212: 1 | S212: 1 | T212: 3
A213: 1.2.8.3 | C213: c) Community Liaison Officer & CSO | D213: Prov. Sum | E213: 1 | F213: 300000 | G213: =F213*E213 -> 300000 | Q213: 1 | R213: 1 | S213: 1 | T213: 3
Q214: 1 | R214: 1 | S214: 1 | T214: 3
A215: 1.2.8.4 | B215: PSA 8.4.6.5 | C215: d) Training of local labour and SMMEs | D215: Prov. Sum | E215: 1 | F215: =500000+840000 -> 1340000 | G215: =F215 -> 1340000 | Q215: 1 | R215: 1 | S215: 1 | T215: 3
Q216: 1 | R216: 1 | S216: 1 | T216: 3
A217: 1.2.8.5 | C217: e) Alterations and connection to Municipal services and repair to damaged services where approved by Employer’s Agent | D217: Prov. Sum | E217: 1 | F217: 500000 | G217: =F217 -> 500000 | Q217: 1 | R217: 1 | S217: 1 | T217: 3
Q218: 1 | R218: 1 | S218: 1 | T218: 3
A219: 1.2.8.6 | C219: f) Employer’s Agent’s Equipment and Independent testing | D219: Prov. Sum | E219: 1 | F219: 500000 | G219: =F219 -> 500000 | Q219: =IF(K219="No comment",0,1) -> 1 | R219: =IF(L219="No comment",0,1) -> 1 | S219: =IF(M219="No comment",0,1) -> 1 | T219: =SUM(N219:S219) -> 3
Q220: 1 | R220: 1 | S220: 1 | T220: 3
A221: 1.2.8.7 | C221: g) Relocation of existing services | D221: Prov. Sum | E221: 1 | F221: 500000 | G221: =F221 -> 500000 | Q221: 1 | R221: 1 | S221: 1 | T221: 3
Q222: 1 | R222: 1 | S222: 1 | T222: 3
A223: 1.2.8.8 | C223: h) Topographical Survey as per the Employer’s Agent's instruction | D223: Prov.Sum | E223: 1 | F223: 200000 | G223: =F223*E223 -> 200000 | Q223: 1 | R223: 1 | S223: 1 | T223: 3
Q224: 1 | R224: 1 | S224: 1 | T224: 3
A225: 1.2.8.9 | C225: i) Provision of photographic records | D225: Prov. Sum | E225: 1 | F225: 200000 | G225: =F225 -> 200000 | Q225: 1 | R225: 1 | S225: 1 | T225: 3
Q226: 1 | R226: 1 | S226: 1 | T226: 3
A227: 1.2.8.10 | C227: j) Pressure logging, leak detection and conduct water conservation tests on selected pipelines | D227: Prov. Sum | E227: 1 | F227: 1000000 | G227: 1000000 | Q227: 1 | R227: 1 | S227: 1 | T227: 3
Q228: 1 | R228: 1 | S228: 1 | T228: 3
Q229: 1 | R229: 1 | S229: 1 | T229: 3
A230: 1.2.8.12 | C230: l) SANRAL Wayleave Permit | D230: Prov Sum | E230: 1 | F230: 700000 | G230: =F230 -> 700000 | Q230: 1 | R230: 1 | S230: 1 | T230: 3
Q231: 1 | R231: 1 | S231: 1 | T231: 3
A232: 1.2.8.13 | C232: m) Provision of as-built information | D232: Prov Sum | E232: 1 | F232: 350000 | G232: =F232 -> 350000 | Q232: 1 | R232: 1 | S232: 1 | T232: 3
Q233: 1 | R233: 1 | S233: 1 | T233: 3
A234: 1.2.8.14 | C234: n) Construction Work Permit | D234: Prov. Sum | E234: 1 | F234: 300000 | G234: =F234 -> 300000 | Q234: 1 | R234: 1 | S234: 1 | T234: 3
Q235: 1 | R235: 1 | S235: 1 | T235: 3
A236: 1.2.8.15 | C236: o) Pipeline servitude registration | D236: Prov. Sum | E236: 1 | F236: 400000 | G236: =F236 -> 400000 | Q236: 1 | R236: 1 | S236: 1 | T236: 3
Q237: 1 | R237: 1 | S237: 1 | T237: 3
A238: TOTAL CARRIED FORWARD TO NEXT PAGE | Q238: 1 | R238: 1 | S238: 1 | T238: 3
A239: ITEM NO | B239: PAYMENT CLAUSE | C239: DESCRIPTION | D239: UNIT | E239: QUANTITY | F239: RATE | G239: AMOUNT | Q239: 1 | R239: 1 | S239: 1 | T239: 3
C240: TOTAL CARRIED FROM PREVIOUS PAGE | Q240: 1 | R240: 1 | S240: 1 | T240: 3
A242: 1.2.8.14 | C242: p) JW ISD | D242: Stated month | E242: 12 | F242: 2000 | G242: =F242*E242 -> 24000 | Q242: 1 | R242: 1 | S242: 1 | T242: 3
Q243: 1 | R243: 1 | S243: 1 | T243: 3
A244: 1.2.8.15 | C244: q) Community awareness material | D244: Stated Sum | E244: 1 | F244: 50000 | G244: =F244*E244 -> 50000 | Q244: 1 | R244: 1 | S244: 1 | T244: 3
Q245: 1 | R245: 1 | S245: 1 | T245: 3
A246: 1.2.8.16 | C246: r) Overheads, charges and profit on items (a) to (q) above | D246: % | F246: =SUM(G209:G244) -> 7864000 | Q246: 1 | R246: 1 | S246: 1 | T246: 3
Q247: 1 | R247: 1 | S247: 1 | T247: 3
A248: 1.3 | B248: PSA 8.7 | C248: DAYWORK | Q248: 1 | R248: 1 | S248: 1 | T248: 3
Q249: 1 | R249: 1 | S249: 1 | T249: 3
A250: 1.3.1 | B250: PSA8.7.1.3 | C250: a) Labour | Q250: 1 | R250: 1 | S250: 1 | T250: 3
Q251: 1 | R251: 1 | S251: 1 | T251: 3
A252: 1.3.1.1 | C252: 1) Foreman/Surveyor | D252: hr | E252: 300 | Q252: 1 | R252: 1 | S252: 1 | T252: 3
Q253: 1 | R253: 1 | S253: 1 | T253: 3
A254: 1.3.1.2 | C254: 2) Artisan | D254: hr | E254: 300 | Q254: 1 | R254: 1 | S254: 1 | T254: 3
Q255: 1 | R255: 1 | S255: 1 | T255: 3
A256: 1.3.1.3 | C256: 3) Semi-skilled labourer | D256: hr | E256: 300 | Q256: 1 | R256: 1 | S256: 1 | T256: 3
Q257: 1 | R257: 1 | S257: 1 | T257: 3
A258: 1.3.1.4 | C258: 4) Unskilled Labourer | D258: hr | E258: 300 | Q258: 1 | R258: 1 | S258: 1 | T258: 3
Q259: 1 | R259: 1 | S259: 1 | T259: 3
A260: 1.3.1.5 | C260: 5) Extra over for night- or non-working times | D260: % | Q260: 1 | R260: 1 | S260: 1 | T260: 3
G261: =IF(E261<>"",E261*F261,"") ->  | Q261: 1 | R261: 1 | S261: 1 | T261: 3
A262: 1.3.2 | C262: b) Materials | Q262: 1 | R262: 1 | S262: 1 | T262: 3
Q263: 1 | R263: 1 | S263: 1 | T263: 3
A264: 1.3.2.1 | C264: 1) Provisional sum for purchase of materials | D264: PC Sum | E264: 1 | F264: 250000 | G264: 250000 | Q264: 1 | R264: 1 | S264: 1 | T264: 3
Q265: 1 | R265: 1 | S265: 1 | T265: 3
A266: 1.3.2.2 | C266: 2) Mark up on 1) above | D266: % | F266: =F264 -> 250000 | Q266: 1 | R266: 1 | S266: 1 | T266: 3
Q267: 1 | R267: 1 | S267: 1 | T267: 3
A268: 1.3.3 | C268: c) Plant and Equipment | Q268: 1 | R268: 1 | S268: 1 | T268: 3
Q269: 1 | R269: 1 | S269: 1 | T269: 3
A270: 1.3.3.1 | C270: 1) Crane 65 - 80 t Capacity | D270: hr | E270: 40 | Q270: 1 | R270: 1 | S270: 1 | T270: 3
Q271: 1 | R271: 1 | S271: 1 | T271: 3
A272: 1.3.3.2 | C272: 2) Wheel loader 140 - 150 Kw | D272: hr | E272: 40 | Q272: 1 | R272: 1 | S272: 1 | T272: 3
Q273: 1 | R273: 1 | S273: 1 | T273: 3
A274: 1.3.3.3 | C274: 3) Plate compactor and tampers | D274: hr | E274: 40 | Q274: 1 | R274: 1 | S274: 1 | T274: 3
Q275: 1 | R275: 1 | S275: 1 | T275: 3
A276: 1.3.3.4 | C276: 4) Motor grader 150 - 160 Kw | D276: hr | E276: 40 | Q276: 1 | R276: 1 | S276: 1 | T276: 3
Q277: 1 | R277: 1 | S277: 1 | T277: 3
A278: 1.3.3.5 | C278: 5) Vibrating roller (500 - 630kg) | D278: hr | E278: 40 | Q278: 1 | R278: 1 | S278: 1 | T278: 3
Q279: 1 | R279: 1 | S279: 1 | T279: 3
A280: 1.3.3.6 | C280: 6) Concrete mixer | D280: hr | E280: 40 | Q280: 1 | R280: 1 | S280: 1 | T280: 3
... 2352 more rows
